bitfinex/quotes_BTCUSD_20260307
["timestamp","ask_amount","ask_price","bid_price","bid_amount"]
[1772902906460,0.07369631,67846.0,67835.0,0.01012211]
[1772902906636,0.07369413,67848.0,67835.0,0.01012211]
[1772902906637,0.07369305,67849.0,67835.0,0.01012211]
[1772902907015,0.07368762,67854.0,67836.0,0.07370717]
[1772902907215,0.01939416,67853.0,67837.0,0.0101269]
[1772902908270,0.01939416,67853.0,67834.0,0.00148]
[1772902908422,0.01939416,67849.0,67833.0,0.00148]
[1772902908772,0.01939416,67847.0,67833.0,0.00148]
[1772902908928,0.01939416,67839.0,67825.0,0.0004]
[1772902909135,0.01939416,67837.0,67826.0,0.00148]
[1772902909467,0.01939416,67837.0,67827.0,0.00148]
[1772902909840,0.01939416,67837.0,67825.0,0.0004]
[1772902910047,0.01939416,67837.0,67826.0,0.00148]
[1772902911045,0.073705,67841.0,67826.0,0.00148]
[1772902911046,0.07369848,67844.0,67828.0,0.07371586]
[1772902911246,0.07369848,67844.0,67829.0,0.01013614]
[1772902911469,0.07369848,67844.0,67828.0,0.07371586]
[1772902911470,0.07369848,67844.0,67830.0,0.01013614]
[1772902911672,0.07369848,67844.0,67832.0,0.01013614]
[1772902911895,0.07369848,67844.0,67834.0,0.01013614]
[1772902913350,0.07381331,67849.0,67834.0,0.07370895]
[1772902913551,0.07381331,67849.0,67835.0,0.01014061]
[1772902915857,0.07381331,67849.0,67833.0,0.00148]
[1772902916062,0.01939416,67842.0,67829.0,0.00148]
[1772902916303,0.01939416,67842.0,67825.0,0.07411909]
[1772902916475,0.00148,67848.0,67829.0,0.01162497]
[1772902916684,0.00148,67848.0,67830.0,0.01014497]
[1772902916878,0.07403332,67849.0,67832.0,0.01014497]
[1772902917103,0.07403332,67849.0,67833.0,0.01014924]
[1772902917442,0.07403332,67849.0,67835.0,0.01014924]
[1772902917645,0.07403332,67849.0,67836.0,0.01162924]
[1772902918025,0.001,67842.0,67836.0,0.01162924]
[1772902918232,0.07403332,67849.0,67836.0,0.01162924]
[1772902919567,0.07403332,67849.0,67836.0,0.00148]
[1772902919568,0.01939416,67848.0,67836.0,0.00148]
[1772902919760,0.01939416,67848.0,67837.0,0.00148]
[1772902921960,0.01898654,67846.0,67837.0,0.00148]
[1772902922431,0.07369522,67847.0,67837.0,0.00148]
[1772902922632,0.00034027,67849.0,67838.0,0.01015545]
[1772902922875,0.00034027,67849.0,67840.0,0.01015545]
[1772902923070,0.00034027,67849.0,67842.0,0.01016145]
[1772902923234,0.00034027,67849.0,67844.0,0.01016145]
[1772902924085,0.00022001,67848.0,67843.0,0.00148]
[1772902924645,0.00022001,67848.0,67843.0,0.01164145]
[1772902926182,0.00022001,67848.0,67843.0,0.00148]
[1772902926555,0.00022001,67848.0,67843.0,0.01164534]
[1772902927455,0.00022001,67848.0,67843.0,0.07517901]
[1772902927655,0.00022001,67850.0,67844.0,0.01016914]
[1772902927855,0.07391216,67850.0,67843.0,0.00148]
[1772902928262,0.00022001,67850.0,67844.0,0.01016914]
[1772902931399,0.05328415,67851.0,67844.0,0.01016914]
[1772902932794,0.05328415,67851.0,67845.0,0.00148]
[1772902932795,0.0193872,67850.0,67845.0,0.00148]
[1772902932954,0.0193872,67850.0,67838.0,0.07370485]
[1772902933153,0.0193872,67850.0,67836.0,0.08388514]
[1772902933154,0.0193872,67848.0,67839.0,0.00148]
[1772902933774,0.0193872,67848.0,67840.0,0.00148]
[1772902935390,0.07369305,67849.0,67840.0,0.00148]
[1772902938799,0.0193872,67848.0,67840.0,0.00148]
[1772902940014,0.0193872,67848.0,67836.0,0.0002]
[1772902940216,0.0203872,67848.0,67838.0,0.00148]
[1772902940420,0.0203872,67848.0,67832.0,0.00148]
[1772902940421,0.0193872,67848.0,67832.0,0.00148]
[1772902940786,0.0193872,67846.0,67832.0,0.00148]
[1772902941029,0.0193872,67846.0,67833.0,0.00148]
[1772902941238,0.0193872,67846.0,67840.0,0.0002]
[1772902941993,0.00192081,67846.0,67840.0,0.0002]
[1772902943160,0.0193872,67844.0,67840.0,0.0002]
[1772902943690,0.0193872,67844.0,67835.0,0.00148]
[1772902944022,0.0193872,67844.0,67833.0,0.0002]
[1772902944227,0.0193872,67844.0,67834.0,0.00148]
[1772902944430,0.001,67844.0,67834.0,0.00148]
[1772902944665,0.07369739,67845.0,67835.0,0.00148]
[1772902945333,0.07369739,67846.0,67835.0,0.00148]
[1772902945731,0.0193872,67845.0,67835.0,0.00148]
[1772902947381,0.09308568,67844.0,67835.0,0.00148]
[1772902947543,0.09308568,67844.0,67833.0,0.0002]
[1772902947743,0.09308568,67844.0,67834.0,0.00148]
[1772902948082,0.09308568,67844.0,67833.0,0.0002]
[1772902948281,0.07369848,67844.0,67835.0,0.00148]
[1772902949087,0.07369848,67844.0,67835.0,0.00168]
[1772902949487,0.07370065,67842.0,67835.0,0.00168]
[1772902949991,0.07370065,67842.0,67835.0,0.00148]
[1772902951096,0.0193872,67841.0,67832.0,0.00148]
[1772902951297,0.0193872,67841.0,67831.0,0.00148]
[1772902951665,0.07370283,67840.0,67831.0,0.00148]
[1772902952987,0.07370283,67840.0,67831.0,0.0018528]
[1772902955288,0.07370283,67840.0,67831.0,0.0020028]
[1772902956844,0.07370283,67840.0,67831.0,0.0022028]
[1772902957163,0.14704661,67844.0,67832.0,0.07371152]
[1772902957469,0.07369848,67846.0,67833.0,0.0134086]
[1772902957840,0.07369848,67846.0,67833.0,0.0137814]
[1772902958195,0.07369848,67846.0,67833.0,0.07408222]
[1772902958399,0.07369848,67846.0,67834.0,0.0134086]
[1772902959038,0.07369848,67846.0,67834.0,0.0137814]
[1772902959436,0.07369848,67846.0,67834.0,0.01894499]
[1772902959616,0.07369848,67846.0,67835.0,0.01336923]
[1772902960042,0.07369848,67846.0,67835.0,0.01374203]
[1772902961275,0.07369848,67846.0,67835.0,0.01357224]
[1772902961426,0.07369848,67846.0,67836.0,0.01335553]
[1772902962034,0.07369848,67846.0,67836.0,0.01372833]
[1772902962787,0.07369848,67846.0,67837.0,0.01483553]
[1772902963026,0.07369848,67846.0,67837.0,0.01520833]
[1772902966523,0.07369848,67846.0,67838.0,0.01022941]
[1772902971278,0.07369848,67846.0,67838.0,0.00148]
[1772902971482,0.07369848,67846.0,67828.0,0.0002]
[1772902971483,0.01854108,67842.0,67828.0,0.0002]
[1772902971717,0.02804552,67840.0,67828.0,0.07391535]
[1772902971921,0.02804552,67840.0,67830.0,0.00144]
[1772902972563,0.00148,67845.0,67830.0,0.00144]
[1772902972766,0.07369848,67846.0,67833.0,0.00956684]
[1772902973375,0.07369848,67846.0,67834.0,0.01023893]
[1772902973550,0.07391849,67846.0,67834.0,0.01023893]
[1772902974036,0.00022001,67846.0,67835.0,0.01857219]
[1772902974254,0.00022001,67846.0,67838.0,0.01023893]
[1772902974883,0.00022001,67846.0,67840.0,0.01023893]
[1772902975269,0.00022001,67848.0,67840.0,0.01023893]
[1772902975474,0.00022001,67848.0,67840.0,0.01006924]
[1772902976873,0.07369522,67847.0,67840.0,0.01006924]
[1772902977077,0.01854108,67846.0,67831.0,0.07391242]
[1772902977249,0.07369522,67847.0,67833.0,0.01834212]
[1772902979808,0.07369522,67847.0,67833.0,0.09205206]
[1772902980213,0.07369522,67847.0,67834.0,0.01824561]
[1772902981646,0.01881467,67846.0,67833.0,0.0002]
[1772902981988,0.01881467,67846.0,67831.0,0.07391242]
[1772902981989,0.01881467,67844.0,67831.0,0.00148]
[1772902982188,0.02029467,67844.0,67831.0,0.00148]
[1772902982666,0.02029467,67844.0,67829.0,0.00148]
[1772902983870,0.07369957,67843.0,67829.0,0.00148]
[1772902986677,0.01958573,67839.0,67826.0,0.0002]
[1772902987014,0.0434553,67840.0,67826.0,0.0002]
[1772902987015,0.01958573,67837.0,67826.0,0.0002]
[1772902987213,0.00148,67838.0,67826.0,0.0002]
[1772902987419,0.00148,67838.0,67826.0,0.01816499]
[1772902988025,0.26429529,67842.0,67826.0,0.01816499]
[1772902988026,0.07369897,67844.0,67829.0,0.0183068]
[1772902988230,0.07369897,67844.0,67832.0,0.01796499]
[1772902988876,0.07517785,67845.0,67832.0,0.01796499]
[1772902989074,0.07517785,67845.0,67833.0,0.01796499]
[1772902989233,0.07369785,67845.0,67833.0,0.01796499]
[1772902989975,0.00022001,67846.0,67835.0,0.0178616]
[1772902990712,0.0739166,67846.0,67835.0,0.0178616]
[1772902991474,0.00022001,67846.0,67835.0,0.0178616]
[1772902991679,0.00022001,67846.0,67837.0,0.01790828]
[1772902991873,0.00022001,67847.0,67839.0,0.03621508]
[1772902992069,0.00022001,67847.0,67840.0,0.01790828]
[1772902993590,0.00037001,67848.0,67841.0,0.01781254]
[1772902996143,0.00037001,67848.0,67841.0,0.07370131]
[1772902996276,0.00037001,67848.0,67842.0,0.01771406]
[1772902997370,0.07406484,67848.0,67836.0,0.07518676]
[1772902997995,0.07406484,67848.0,67836.0,0.09280442]
[1772902999300,0.00037001,67848.0,67836.0,0.09280442]
[1772902999901,0.00037001,67848.0,67836.0,0.07518676]
[1772903000119,0.00037001,67848.0,67837.0,0.01752169]
[1772903000632,0.07418632,67850.0,67837.0,0.01752169]
[1772903002000,0.07418632,67850.0,67838.0,0.073705]
[1772903002217,0.00049344,67850.0,67839.0,0.01742624]
[1772903002531,0.00049344,67850.0,67839.0,0.03573304]
[1772903002748,0.00049344,67850.0,67838.0,0.073705]
[1772903003053,0.00049344,67850.0,67840.0,0.01742624]
[1772903004169,0.00049344,67850.0,67842.0,0.0176413]
[1772903005159,0.00022001,67853.0,67842.0,0.0183068]
[1772903005360,0.00022001,67853.0,67844.0,0.01754693]
[1772903005681,0.00022001,67850.0,67844.0,0.01754693]
[1772903006265,0.00022001,67850.0,67844.0,0.09124499]
[1772903006440,0.00022001,67850.0,67845.0,0.01754693]
[1772903010679,0.00022001,67850.0,67846.0,0.01736059]
[1772903013429,0.00022001,67853.0,67846.0,0.01736059]
[1772903013779,0.00022001,67850.0,67846.0,0.01736059]
[1772903014028,0.00022001,67853.0,67846.0,0.01736059]
[1772903016946,0.00022001,67853.0,67843.0,0.07369956]
[1772903017239,0.07390923,67853.0,67842.0,0.00160023]
[1772903017466,0.01970245,67852.0,67837.0,0.07390601]
[1772903017662,0.01982268,67852.0,67838.0,0.00148]
[1772903017886,0.01982268,67852.0,67837.0,0.07390601]
[1772903018194,0.01982268,67852.0,67837.0,0.0002]
[1772903018195,0.07369088,67851.0,67837.0,0.0002]
[1772903018370,0.02118245,67850.0,67837.0,0.0002]
[1772903020549,0.07361891,67849.0,67837.0,0.0002]
[1772903021389,0.07361891,67849.0,67832.0,0.0001343]
[1772903021617,0.00346609,67845.0,67832.0,0.0001343]
[1772903021840,0.00348456,67843.0,67832.0,0.0001343]
[1772903022176,0.02318701,67843.0,67832.0,0.0001343]
[1772903022604,0.00148,67844.0,67832.0,0.07384529]
[1772903022797,0.00022001,67850.0,67836.0,0.0190978]
[1772903022997,0.00022001,67850.0,67838.0,0.01004812]
[1772903023746,0.00022001,67850.0,67839.0,0.00148]
[1772903024004,0.07391273,67850.0,67840.0,0.01044256]
[1772903027089,0.00022001,67850.0,67840.0,0.01044256]
[1772903027310,0.00022001,67850.0,67842.0,0.01968898]
[1772903027845,0.07381014,67852.0,67842.0,0.01968898]
[1772903034518,0.07381014,67852.0,67842.0,0.01988898]
[1772903034756,0.07403015,67852.0,67842.0,0.09358931]
[1772903034954,0.07403015,67852.0,67843.0,0.00148]
[1772903036429,0.00034024,67852.0,67843.0,0.07517934]
[1772903037470,0.00034024,67852.0,67843.0,0.00148]
[1772903037471,0.08632723,67852.0,67843.0,0.00148]
[1772903038226,0.0740304,67852.0,67843.0,0.00148]
[1772903038424,0.01229683,67851.0,67843.0,0.00148]
[1772903039126,0.01229683,67851.0,67843.0,0.00131028]
[1772903039553,0.01229683,67851.0,67843.0,0.00114059]
[1772903041532,0.08598775,67851.0,67843.0,0.00114059]
[1772903042338,0.01229683,67850.0,67843.0,0.00114059]
[1772903044012,0.08598926,67850.0,67843.0,0.00114059]
[1772903044213,0.01229683,67849.0,67843.0,0.00114059]
[1772903045505,0.01229683,67847.0,67843.0,0.00148]
[1772903046526,0.07369243,67850.0,67842.0,0.0002]
[1772903046726,0.01229683,67850.0,67843.0,0.00148]
[1772903048244,0.07369095,67851.0,67843.0,0.00148]
[1772903048410,0.07403059,67852.0,67843.0,0.00148]
[1772903050019,0.08598781,67851.0,67843.0,0.00148]
[1772903050533,0.07369098,67851.0,67843.0,0.00148]
[1772903050722,0.01229683,67850.0,67843.0,0.00148]
[1772903051957,0.01986867,67848.0,67835.0,0.0002]
[1772903052252,0.07369305,67849.0,67836.0,0.00148]
[1772903052253,0.01067804,67846.0,67836.0,0.00148]
[1772903052424,0.01067804,67844.0,67832.0,0.0001343]
[1772903052618,0.01067804,67842.0,67832.0,0.0001343]
[1772903053067,0.01067804,67842.0,67832.0,0.0016143]
[1772903054374,0.01067804,67842.0,67833.0,0.07371043]
[1772903055274,0.07369747,67845.0,67833.0,0.07371043]
[1772903055474,0.0106965,67847.0,67833.0,0.07371043]
[1772903055652,0.08587219,67847.0,67833.0,0.09287401]
[1772903056179,0.0106965,67846.0,67833.0,0.09287401]
[1772903056338,0.08439389,67845.0,67833.0,0.09287401]
[1772903056795,0.0106965,67844.0,67833.0,0.09287401]
[1772903056993,0.0106965,67844.0,67833.0,0.07371043]
[1772903058715,0.07369957,67843.0,67833.0,0.07391043]
[1772903062533,0.08589442,67847.0,67833.0,0.07391043]
[1772903062854,0.01071915,67846.0,67833.0,0.09307401]
[1772903063032,0.01071915,67846.0,67833.0,0.0002]
[1772903063238,0.01071915,67845.0,67833.0,0.0002]
[1772903064263,0.01071915,67845.0,67834.0,0.00148]
[1772903064815,0.01072635,67843.0,67835.0,0.00148]
[1772903065179,0.01072635,67843.0,67836.0,0.00148]
[1772903065617,0.01072635,67843.0,67833.0,0.0002]
[1772903066173,0.01072635,67843.0,67834.0,0.00148]
[1772903066631,0.07370065,67842.0,67834.0,0.0002]
[1772903066917,0.0107334,67841.0,67835.0,0.00148]
[1772903067124,0.0107334,67841.0,67834.0,0.0002]
[1772903067287,0.0107334,67841.0,67835.0,0.00148]
[1772903067617,0.0107334,67841.0,67834.0,0.0002]
[1772903067814,0.0107334,67841.0,67835.0,0.00148]
[1772903068583,0.0107334,67841.0,67834.0,0.0002]
[1772903068790,0.0107334,67841.0,67835.0,0.00148]
[1772903069391,0.010747,67840.0,67834.0,0.0002]
[1772903069613,0.010747,67840.0,67835.0,0.00148]
[1772903072653,0.07369848,67844.0,67835.0,0.00148]
[1772903072840,0.08445206,67844.0,67835.0,0.00148]
[1772903074081,0.08468376,67844.0,67835.0,0.00148]
[1772903074490,0.07393018,67844.0,67835.0,0.00148]
[1772903074769,0.01076,67843.0,67835.0,0.00148]
[1772903075064,0.0109917,67843.0,67835.0,0.00148]
[1772903075916,0.08469151,67843.0,67835.0,0.00148]
[1772903077223,0.0109917,67843.0,67835.0,0.00148]
[1772903077635,0.0002317,67843.0,67835.0,0.09455003]
[1772903077836,0.00022001,67845.0,67835.0,0.09455003]
[1772903078851,0.07381591,67848.0,67835.0,0.09455003]
[1772903079272,0.07381591,67848.0,67836.0,0.01936241]
[1772903079921,0.07381591,67848.0,67837.0,0.07370608]
[1772903081419,0.0001216,67848.0,67837.0,0.07370608]
[1772903081798,0.0001216,67848.0,67837.0,0.07353638]
[1772903082029,0.0001216,67848.0,67837.0,0.09289879]
[1772903082409,0.01090872,67848.0,67837.0,0.09289879]
[1772903083522,0.01079278,67847.0,67836.0,0.07370635]
[1772903083718,0.01079278,67847.0,67836.0,0.07353668]
[1772903083950,0.01079278,67847.0,67836.0,0.07336708]
[1772903086091,0.01079278,67847.0,67836.0,0.07319744]
[1772903086250,0.01079278,67847.0,67836.0,0.0730278]
[1772903087434,0.0108037,67846.0,67835.0,0.00148]
[1772903087635,0.0108037,67845.0,67835.0,0.07518754]
[1772903092331,0.01102371,67845.0,67835.0,0.07518754]
[1772903095950,0.01102371,67845.0,67836.0,0.07370717]
[1772903096157,0.01102371,67845.0,67835.0,0.07518817]
[1772903097153,0.0108241,67844.0,67835.0,0.07518817]
[1772903097978,0.00022001,67845.0,67835.0,0.07518817]
[1772903098396,0.01104892,67845.0,67835.0,0.07518817]
[1772903098604,0.00022001,67845.0,67835.0,0.07518817]
[1772903100290,0.00022001,67845.0,67835.0,0.07538817]
[1772903100691,0.01083361,67844.0,67831.0,0.00015]
[1772903100916,0.01839936,67841.0,67831.0,0.00148]
[1772903101111,0.01083361,67839.0,67831.0,0.00148]
[1772903101312,0.01920818,67837.0,67827.0,0.00148]
[1772903101514,0.0108382,67834.0,67824.0,0.00148]
[1772903101713,0.0108382,67833.0,67824.0,0.00148]
[1772903102081,0.0108382,67832.0,67824.0,0.00148]
[1772903102788,0.0108382,67832.0,67821.0,0.0002]
[1772903103011,0.0108382,67830.0,67821.0,0.07540329]
[1772903104027,0.0108382,67830.0,67821.0,0.07392274]
[1772903104228,0.01090907,67830.0,67821.0,0.07392274]
[1772903105654,0.01084923,67829.0,67816.0,0.07372891]
[1772903105858,0.01084923,67829.0,67817.0,0.00148]
[1772903106200,0.01084923,67829.0,67818.0,0.00148]
[1772903106647,0.0001216,67835.0,67820.0,0.01808976]
[1772903106983,0.00148,67841.0,67820.0,0.01816063]
[1772903107248,0.01233347,67841.0,67820.0,0.01816063]
[1772903108422,0.01085347,67841.0,67820.0,0.01816063]
[1772903109072,0.07370259,67841.0,67821.0,0.07372347]
[1772903109412,0.07370259,67841.0,67822.0,0.01808976]
[1772903109413,0.01085347,67840.0,67822.0,0.01808976]
[1772903109745,0.01085347,67840.0,67823.0,0.00148]
[1772903109946,0.01085347,67840.0,67823.0,0.01956976]
[1772903111581,0.01916801,67838.0,67823.0,0.07520124]
[1772903111783,0.01086364,67837.0,67823.0,0.07520124]
[1772903112078,0.01086364,67837.0,67824.0,0.00148]
[1772903113608,0.01086514,67835.0,67825.0,0.07371913]
[1772903118072,0.01086514,67835.0,67824.0,0.07539947]
[1772903122780,0.01108515,67835.0,67824.0,0.07539947]
[1772903125394,0.00022001,67835.0,67824.0,0.07539947]
[1772903125559,0.01068537,67835.0,67824.0,0.07539947]
[1772903126784,0.07392866,67835.0,67824.0,0.0002]
[1772903127003,0.01046536,67832.0,67820.0,7.087e-05]
[1772903127571,0.01916801,67831.0,67820.0,7.087e-05]
[1772903127772,0.01194536,67830.0,67820.0,7.087e-05]
[1772903128763,0.01916801,67828.0,67816.0,0.0002]
[1772903128976,0.01046536,67827.0,67816.0,0.0002]
[1772903130204,0.01046536,67827.0,67820.0,0.0002]
[1772903130411,0.01046536,67825.0,67820.0,0.0002]
[1772903130574,0.00148,67830.0,67820.0,0.0002]
[1772903130910,0.08565701,67832.0,67820.0,0.0002]
[1772903131208,0.01046536,67831.0,67820.0,0.0002]
[1772903131921,0.01194536,67830.0,67820.0,0.0002]
[1772903132293,0.01938802,67835.0,67820.0,0.0002]
[1772903132294,0.14736858,67835.0,67820.0,0.0002]
[1772903132497,0.00148,67834.0,67821.0,0.0187258]
[1772903132813,0.01194536,67834.0,67821.0,0.0187258]
[1772903132997,0.01194536,67834.0,67820.0,0.01070939]
[1772903133199,0.00148,67834.0,67820.0,0.02943519]
[1772903133376,0.01046536,67833.0,67820.0,0.02943519]
[1772903133789,0.01194536,67833.0,67820.0,0.02943519]
[1772903133990,0.01194536,67833.0,67820.0,0.0002]
[1772903134417,0.01046536,67831.0,67820.0,0.0002]
[1772903137848,0.08417863,67831.0,67820.0,0.0002]
[1772903138276,0.01046536,67831.0,67820.0,0.0002]
[1772903145095,0.0099225,67829.0,67816.0,0.0002]
[1772903145245,0.0099225,67829.0,67820.0,0.0002]
[1772903145947,0.00148,67829.0,67820.0,0.0189258]
[1772903146344,0.00022001,67832.0,67820.0,0.0189258]
[1772903146544,0.07541158,67832.0,67820.0,0.0189258]
[1772903147099,0.00170001,67832.0,67821.0,0.07372347]
[1772903147530,0.00175909,67832.0,67821.0,0.07372347]
[1772903147923,0.00027909,67832.0,67821.0,0.09244927]
[1772903152696,0.0739909,67832.0,67821.0,0.07372347]
[1772903154742,0.0839134,67832.0,67821.0,0.07372347]
[1772903160016,0.0099225,67829.0,67816.0,0.00168]
[1772903160219,0.0099225,67829.0,67816.0,0.07540874]
[1772903160424,0.0099225,67827.0,67816.0,0.07540874]
[1772903160714,0.0099225,67827.0,67817.0,0.00148]
[1772903160927,0.0099225,67827.0,67808.0,0.00575]
[1772903160928,0.0099225,67825.0,67808.0,0.00575]
[1772903161132,0.0099225,67819.0,67808.0,0.00575]
[1772903161333,0.0099225,67819.0,67801.0,0.0001489]
[1772903161478,0.01000831,67815.0,67801.0,0.0001489]
[1772903161680,0.01000831,67813.0,67801.0,0.0001489]
[1772903162812,0.01000831,67811.0,67801.0,0.0001489]
[1772903163604,0.07521217,67814.0,67801.0,0.07389412]
[1772903163804,0.07373326,67813.0,67802.0,0.01927289]
[1772903164002,0.07373326,67813.0,67802.0,0.01939312]
[1772903164607,0.07521326,67813.0,67802.0,0.02976346]
[1772903164828,0.07521326,67813.0,67803.0,0.01927289]
[1772903165866,0.07521326,67813.0,67802.0,0.00012023]
[1772903166138,0.07521326,67813.0,67802.0,0.01939312]
[1772903166362,0.07521326,67813.0,67803.0,0.01927289]
[1772903166850,0.07543327,67813.0,67803.0,0.01927289]
[1772903169545,0.07395327,67813.0,67803.0,0.01927289]
[1772903170344,0.07395327,67813.0,67803.0,0.01062609]
[1772903170543,0.0109787,67812.0,67802.0,0.00057353]
[1772903172087,0.07395327,67813.0,67803.0,0.01927289]
[1772903174703,0.08493197,67813.0,67802.0,0.00057353]
[1772903176520,0.08493197,67813.0,67802.0,0.07431734]
[1772903177030,0.08493197,67813.0,67802.0,0.00057353]
[1772903179735,0.07395327,67813.0,67802.0,0.01984642]
[1772903180793,0.07395327,67813.0,67802.0,0.09359034]
[1772903180992,0.07395327,67813.0,67803.0,0.01927289]
[1772903183251,0.07395327,67813.0,67805.0,0.01927289]
[1772903184115,0.07380582,67813.0,67805.0,0.01958579]
[1772903186780,0.07380582,67813.0,67805.0,0.0003129]
[1772903187358,0.0109787,67812.0,67805.0,0.0003129]
[1772903188189,0.07373434,67811.0,67805.0,0.0003129]
[1772903190171,0.07380582,67813.0,67805.0,0.0003129]
[1772903191878,0.07380582,67813.0,67805.0,0.01958579]
[1772903193374,0.07380582,67813.0,67805.0,0.0003129]
[1772903194162,0.05369149,67813.0,67805.0,0.0003129]
[1772903201110,0.14742484,67819.0,67806.0,0.01801781]
[1772903201313,0.07372782,67817.0,67808.0,0.01801781]
[1772903201890,0.00148,67816.0,67808.0,0.01801781]
[1772903202187,0.00148,67816.0,67806.0,0.0003129]
[1772903202743,0.07373,67815.0,67806.0,0.0003129]
[1772903203690,0.01062488,67814.0,67806.0,0.0003129]
[1772903205018,0.07373217,67813.0,67806.0,0.0003129]
[1772903214862,0.07395218,67813.0,67806.0,0.0003129]
[1772903220342,0.07395218,67813.0,67802.0,0.00046063]
[1772903220545,0.00022001,67820.0,67814.0,0.01801781]
[1772903220873,0.00188,67825.0,67817.0,0.01102444]
[1772903221073,0.0004,67825.0,67817.0,0.01102444]
[1772903221230,0.0004,67825.0,67817.0,0.01250444]
[1772903221545,0.07411915,67825.0,67817.0,0.01250444]
[1772903221774,0.07411915,67825.0,67817.0,0.00148]
[1772903222041,0.01098039,67824.0,67817.0,0.00148]
[1772903223624,0.0737213,67823.0,67817.0,0.00148]
[1772903227932,0.0737213,67823.0,67812.0,0.0737324]
[1772903228176,0.01137774,67822.0,67813.0,0.00148]
[1772903229355,0.01137774,67822.0,67813.0,0.07521142]
[1772903230580,0.08510039,67822.0,67813.0,0.07521142]
[1772903231597,0.0853204,67822.0,67813.0,0.07521142]
[1772903231803,0.01137774,67821.0,67813.0,0.00148]
[1772903232725,0.07372456,67820.0,67810.0,0.07373543]
[1772903232864,0.07372456,67820.0,67811.0,0.00148]
[1772903233199,0.07372456,67820.0,67810.0,0.07373543]
[1772903233505,0.07372456,67820.0,67811.0,0.00148]
[1772903234672,0.07372456,67820.0,67809.0,0.07373632]
[1772903234874,0.07372456,67820.0,67810.0,0.00148]
[1772903236734,0.07372456,67821.0,67810.0,0.07521521]
[1772903239361,0.07372456,67821.0,67810.0,0.0856703]
[1772903239562,0.07372456,67821.0,67810.0,0.0858703]
[1772903250727,0.07372456,67821.0,67811.0,0.01045509]
[1772903254566,0.07394457,67821.0,67811.0,0.08418858]
[1772903254768,0.00022001,67822.0,67812.0,0.01045509]
[1772903255137,0.00022001,67822.0,67813.0,0.01045509]
[1772903255919,0.07394244,67822.0,67813.0,0.01045509]
[1772903257073,0.07394244,67822.0,67813.0,0.08418716]
[1772903259207,0.00022001,67822.0,67813.0,0.08418716]
[1772903259873,0.00015,67814.0,67813.0,0.08418716]
[1772903260087,0.07394243,67822.0,67813.0,0.07373207]
[1772903265359,0.07394243,67822.0,67811.0,0.07373349]
[1772903266896,0.07394243,67822.0,67810.0,0.00168]
[1772903267043,0.01127428,67821.0,67810.0,0.00168]
[1772903267213,0.01127428,67821.0,67810.0,0.07541522]
[1772903267417,0.01127428,67820.0,67811.0,0.0002]
[1772903268479,0.01127428,67820.0,67809.0,0.07521642]
[1772903268680,0.07372448,67821.0,67803.0,0.0002]
[1772903268681,0.01127428,67816.0,67803.0,0.0002]
[1772903268896,0.02984155,67814.0,67803.0,0.0002]
[1772903269099,0.01127428,67813.0,67803.0,0.0002]
[1772903269485,0.01127428,67811.0,67803.0,0.0002]
[1772903270973,0.08500898,67811.0,67803.0,0.0002]
[1772903281207,0.01113655,67809.0,67801.0,0.00148]
[1772903281382,0.01113655,67808.0,67799.0,0.0002]
[1772903282622,0.01113655,67807.0,67799.0,0.0002]
[1772903282794,0.0748023,67806.0,67799.0,0.0002]
[1772903283317,0.06202251,67806.0,67804.0,0.0002]
[1772903283528,0.07315906,67806.0,67804.0,0.0002]
[1772903289269,0.07342426,67806.0,67804.0,0.0002]
[1772903292390,0.01140175,67806.0,67804.0,0.0002]
[1772903292593,0.0002652,67806.0,67804.0,0.0002]
[1772903294214,0.074005,67806.0,67804.0,0.0002]
[1772903297432,0.14707039,67813.0,67804.0,0.0002]
[1772903297433,0.07521464,67811.0,67804.0,0.0002]
[1772903297783,0.07373464,67811.0,67804.0,0.0002]
[1772903299256,0.07373434,67812.0,67804.0,3.04e-05]
[1772903301473,0.07373434,67812.0,67799.0,0.09380986]
[1772903301676,0.07377443,67812.0,67799.0,0.10471679]
[1772903303582,0.07377443,67812.0,67799.0,0.10454719]
[1772903305683,0.07377443,67812.0,67799.0,0.09364026]
[1772903305812,0.07377443,67812.0,67799.0,0.10454719]
[1772903306306,0.07399444,67812.0,67799.0,0.10454719]
[1772903307153,0.07399444,67812.0,67800.0,0.01090693]
[1772903308386,0.13646405,67818.0,67800.0,0.01090693]
[1772903308387,0.00022001,67820.0,67806.0,0.01090693]
[1772903308516,0.07407013,67819.0,67808.0,0.01090693]
[1772903308703,0.07407013,67819.0,67808.0,0.01094702]
[1772903313357,0.07407013,67819.0,67808.0,4.009e-05]
[1772903313564,0.01054143,67816.0,67808.0,4.009e-05]
[1772903315603,0.07373,67815.0,67808.0,4.009e-05]
[1772903315805,0.07373,67815.0,67805.0,0.00148]
[1772903316011,0.07377729,67815.0,67805.0,0.00148]
[1772903316806,0.07377729,67815.0,67805.0,0.00131053]
[1772903316960,0.07377729,67815.0,67805.0,0.00114094]
[1772903321397,0.07377729,67815.0,67805.0,0.07488169]
[1772903323107,0.07377729,67815.0,67805.0,0.07508169]
[1772903324549,0.07377729,67815.0,67805.0,0.07491221]
[1772903324923,0.07377729,67815.0,67805.0,0.00117146]
[1772903325119,0.07377729,67815.0,67805.0,0.07491225]
[1772903327806,4.729e-05,67815.0,67805.0,0.07491225]
[1772903329036,4.729e-05,67815.0,67805.0,0.00117146]
[1772903329792,4.729e-05,67815.0,67805.0,0.07491195]
[1772903330396,0.00034351,67826.0,67806.0,0.01835819]
[1772903330565,0.07393706,67827.0,67807.0,0.01835819]
[1772903330739,0.00022001,67827.0,67808.0,0.01835819]
[1772903331266,0.00022001,67827.0,67809.0,0.01835819]
[1772903331622,0.00022001,67827.0,67810.0,0.01835819]
[1772903331826,0.00022001,67822.0,67812.0,0.01835819]
[1772903332027,0.00022001,67822.0,67814.0,0.01835819]
[1772903332224,0.00022001,67822.0,67814.0,0.01818871]
[1772903332434,0.00022001,67822.0,67813.0,0.07373217]
[1772903336402,0.04786374,67820.0,67806.0,4.729e-05]
[1772903336560,0.04786374,67820.0,67810.0,0.07521508]
[1772903337504,0.04786374,67820.0,67810.0,0.00148]
[1772903337799,0.04784987,67819.0,67809.0,0.0001235]
[1772903338306,0.04784987,67819.0,67807.0,0.07373847]
[1772903338610,0.07372673,67818.0,67806.0,4.729e-05]
[1772903338765,0.04784987,67817.0,67808.0,0.00148]
[1772903339612,0.04784987,67817.0,67806.0,4.729e-05]
[1772903339777,0.04784987,67817.0,67808.0,0.0003274]
[1772903340229,0.04784987,67817.0,67808.0,0.0018074]
[1772903340666,0.07372891,67816.0,67808.0,0.0003274]
[1772903340976,0.07372891,67816.0,67808.0,0.0018074]
[1772903341202,0.07372891,67816.0,67808.0,0.0003274]
[1772903341364,0.04782121,67815.0,67808.0,0.0003274]
[1772903342654,0.04782121,67815.0,67806.0,0.00165809]